bitfinex/quotes_SOLUSD_20240615
["timestamp","ask_amount","ask_price","bid_price","bid_amount"]
[1718427991712,6.39,145.03,145.02,2.5512]
[1718427991919,6.39,145.03,145.02,7.6539]
[1718427992320,6.39,145.03,145.02,15.308]
[1718427992534,6.39,145.03,145.02,7.6539]
[1718427993909,6.39,145.03,145.02,25.5134]
[1718427994234,6.39,145.03,145.02,7.654]
[1718427994415,22.9549,145.07,145.04,7.6528]
[1718427994735,6.39,145.05,145.04,7.6528]
[1718427995039,6.39,145.05,145.04,15.3058]
[1718427995227,6.39,145.05,145.04,7.6528]
[1718427995808,25.5052,145.07,145.04,7.6528]
[1718427996031,6.39,145.05,145.04,7.6528]
[1718427996815,6.39,145.05,145.04,2.5508]
[1718427997738,6.39,145.05,145.03,25.5106]
[1718427997911,15.6739,145.09,145.02,0.17]
[1718427998212,15.6739,145.09,145.01,0.17]
[1718427998213,6.39,145.06,145.05,25.5082]
[1718428002442,6.39,145.06,145.05,7.6524]
[1718428003137,6.39,145.06,145.05,15.3049]
[1718428003439,6.39,145.06,145.03,7.6533]
[1718428003440,2.5508,145.05,145.03,7.6533]
[1718428003736,6.39,145.04,145.03,7.6533]
[1718428003919,6.39,145.04,145.03,25.5115]
[1718428005724,6.39,145.04,144.98,15.3212]
[1718428005921,8.9411,145.04,144.98,15.3212]
[1718428006225,6.39,145.02,144.99,0.81628952]
[1718428006427,6.39,145.02,145.01,25.5152]
[1718428007025,6.39,145.02,145.01,26.0252]
[1718428007226,22.9531,145.08,145.02,0.17]
[1718428007425,2.5505,145.07,145.05,2.5507]
[1718428007640,6.39,145.06,145.05,2.5507]
[1718428008312,6.39,145.06,145.05,2.5508]
[1718428009532,6.39,145.06,145.04,25.5093]
[1718428009927,6.39,145.05,145.04,25.5093]
[1718428010526,15.6739,145.09,145.04,0.34]
[1718428010726,6.39,145.06,145.05,17.855]
[1718428010938,6.39,145.06,145.05,25.5074]
[1718428012144,14.0421,145.06,145.03,5.1023]
[1718428012328,6.39,145.04,145.03,15.3067]
[1718428012744,6.39,145.04,145.03,25.5114]
[1718428017973,2.5506,145.06,145.04,7.6529]
[1718428018267,6.39,145.05,145.04,7.6529]
[1718428018855,6.39,145.05,145.04,25.5099]
[1718428019733,6.39,145.05,145.04,7.6529]
[1718428021963,6.39,145.05,145.04,2.5509]
[1718428023535,6.39,145.05,145.04,7.6529]
[1718428024161,6.39,145.05,145.04,2.5509]
[1718428025358,6.39,145.05,145.03,22.9597]
[1718428025560,7.6519,145.06,145.04,2.551]
[1718428025752,6.39,145.05,145.04,2.551]
[1718428026342,6.39,145.05,145.04,7.653]
[1718428027174,6.39,145.05,145.04,2.551]
[1718428027539,6.39,145.05,145.03,25.5108]
[1718428027865,6.39,145.05,145.04,2.551]
[1718428028349,6.39,145.05,145.04,7.653]
[1718428028941,6.39,145.05,145.04,15.306]
[1718428030964,6.39,145.05,145.04,7.653]
[1718428031278,7.651,145.08,145.05,25.5076]
[1718428031473,6.39,145.06,145.05,25.5076]
[1718428031775,25.56,145.11,145.08,2.5502]
[1718428031948,6.39,145.09,145.08,7.6508]
[1718428032341,2.5498,145.11,145.09,2.55]
[1718428032651,8.9399,145.1,145.08,2.5502]
[1718428032852,6.39,145.09,145.08,2.5502]
[1718428033259,6.39,145.09,145.08,7.6508]
[1718428034476,6.39,145.09,145.08,15.3017]
[1718428035050,6.39,145.09,145.08,7.6508]
[1718428035458,6.39,145.09,145.08,15.3017]
[1718428036276,6.39,145.09,145.08,25.5029]
[1718428037668,6.39,145.09,145.08,7.6508]
[1718428038571,6.39,145.09,145.08,15.3017]
[1718428039376,28.1099,145.11,145.09,2.5501]
[1718428039551,6.39,145.1,145.09,7.6503]
[1718428042869,6.39,145.1,145.09,2.5501]
[1718428043259,6.39,145.1,145.09,7.6503]
[1718428043473,6.39,145.1,145.09,2.5501]
[1718428045090,6.39,145.1,145.09,7.6503]
[1718428046779,28.1097,145.11,145.09,7.6503]
[1718428046957,6.39,145.1,145.09,7.6503]
[1718428048257,6.39,145.1,145.09,2.5501]
[1718428050483,2.5505,145.07,145.04,10.2036]
[1718428050667,6.39,145.05,145.04,7.653]
[1718428051470,6.39,145.05,145.04,25.51]
[1718428057286,136.34513121,145.11,145.08,2.5502]
[1718428057582,6.39,145.09,145.08,7.6508]
[1718428057788,6.39,145.09,145.08,15.3017]
[1718428058193,6.39,145.09,145.08,7.6508]
[1718428058374,6.39,145.09,145.08,2.5502]
[1718428058579,6.39,145.09,145.07,22.9533]
[1718428058778,6.39,145.08,145.07,25.5036]
[1718428058988,8.9403,145.08,145.06,7.6516]
[1718428059179,6.39,145.07,145.06,2.5505]
[1718428059997,6.39,145.07,145.06,7.6518]
[1718428062071,6.39,145.07,145.06,25.5064]
[1718428062270,7.6502,145.1,145.08,2.5502]
[1718428062580,6.39,145.09,145.08,2.5502]
[1718428062985,6.39,145.09,145.07,25.5044]
[1718428063282,6.39,145.08,145.07,25.5044]
[1718428063686,6.39,145.08,145.07,7.6512]
[1718428064409,6.39,145.08,145.07,25.5045]
[1718428064870,6.39,145.08,145.07,7.6512]
[1718428066690,6.39,145.08,145.07,25.5045]
[1718428066881,2.5498,145.11,145.09,2.55]
[1718428067194,6.39,145.1,145.09,2.55]
[1718428067773,6.39,145.1,145.08,25.5018]
[1718428068065,6.39,145.09,145.08,25.5018]
[1718428068370,6.39,145.09,145.08,7.6504]
[1718428069784,6.39,145.09,145.08,15.3013]
[1718428070292,2.5505,145.07,145.04,17.8566]
[1718428070495,2.5505,145.07,145.05,2.5507]
[1718428070792,6.39,145.06,145.05,15.3048]
[1718428071096,6.39,145.06,145.05,25.5081]
[1718428071886,2.55,145.1,145.08,2.5502]
[1718428072197,6.39,145.09,145.08,2.5503]
[1718428073374,6.39,145.09,145.08,7.6509]
[1718428073806,6.39,145.09,145.08,2.5503]
[1718428074700,8.9401,145.09,145.07,2.5503]
[1718428075007,6.39,145.08,145.07,2.5503]
[1718428075186,6.39,145.08,145.06,5.1011]
[1718428075377,6.39,145.08,145.07,2.5504]
[1718428076688,6.39,145.08,145.07,15.3027]
[1718428077200,7.6501,145.1,145.07,15.3027]
[1718428077514,6.39,145.08,145.07,15.3027]
[1718428078503,51.0584,145.11,145.08,7.6507]
[1718428078675,6.39,145.09,145.08,7.6507]
[1718428079902,33.2097,145.11,145.08,15.3016]
[1718428080207,6.39,145.09,145.08,15.3016]
[1718428080411,6.39,145.09,145.08,7.6507]
[1718428081004,6.39,145.09,145.08,25.5028]
[1718428081487,2.5499,145.11,145.09,2.5501]
[1718428081888,22.6893,145.13,145.1,5.0999]
[1718428082113,6.39,145.11,145.1,5.0999]
[1718428082409,6.39,145.11,145.1,7.6497]
[1718428082917,6.39,145.11,145.1,2.5498]
[1718428083415,2.5496,145.12,145.1,2.5498]
[1718428083589,6.39,145.11,145.1,7.6497]
[1718428084295,6.39,145.11,145.1,15.2995]
[1718428084916,6.39,145.11,145.1,7.6497]
[1718428085510,15.2968,145.13,145.1,7.6497]
[1718428085691,6.39,145.11,145.1,7.6497]
[1718428086296,6.39,145.11,145.1,25.4993]
[1718428086605,6.39,145.11,145.1,7.6497]
[1718428087108,6.39,145.11,145.1,2.5498]
[1718428087512,6.39,145.11,145.1,7.6497]
[1718428090418,6.39,145.11,145.1,15.2995]
[1718428090715,6.39,145.11,145.04,0.17]
[1718428090889,25.4952,145.13,145.1,7.6498]
[1718428091091,6.39,145.11,145.1,7.6498]
[1718428092025,6.39,145.11,145.1,2.5499]
[1718428093312,6.39,145.11,145.09,25.5001]
[1718428093697,6.39,145.11,145.1,2.5499]
[1718428094698,112.78,145.11,145.04,2.5509]
[1718428094905,6.39,145.05,145.04,25.5095]
[1718428098423,2.5504,145.08,145.06,2.5506]
[1718428098717,6.39,145.07,145.06,2.5506]
[1718428099495,6.39,145.07,145.05,15.3046]
[1718428099695,6.39,145.06,145.05,15.3046]
[1718428099933,6.39,145.06,145.05,7.6521]
[1718428100791,6.39,145.06,145.05,15.3046]
[1718428101226,7.651,145.08,145.05,15.3046]
[1718428101421,8.9407,145.06,145.02,7.6539]
[1718428101715,2.5507,145.06,145.04,2.5509]
[1718428101899,6.39,145.05,145.04,2.5509]
[1718428102425,6.39,145.05,145.04,7.6529]
[1718428103217,6.39,145.05,145.04,15.3059]
[1718428103401,6.39,145.05,145.04,25.5099]
[1718428103598,25.5038,145.08,145.05,7.6523]
[1718428103853,6.39,145.06,145.05,7.6523]
[1718428104319,25.5038,145.08,145.05,7.6523]
[1718428104524,6.39,145.06,145.05,7.6523]
[1718428104693,6.39,145.06,145.05,2.5507]
[1718428105314,6.39,145.06,145.04,22.9588]
[1718428105491,6.39,145.06,145.04,25.5096]
[1718428105697,6.39,145.06,145.05,2.5508]
[1718428107399,6.39,145.06,145.05,7.6524]
[1718428107609,6.39,145.06,145.05,25.5082]
[1718428109695,2.5501,145.09,145.07,2.5504]
[1718428109914,6.39,145.08,145.07,7.6513]
[1718428110817,6.39,145.08,145.07,15.3027]
[1718428112525,6.39,145.08,145.07,25.5046]
[1718428113726,6.39,145.08,145.07,7.6513]
[1718428113929,6.39,145.08,145.07,2.5504]
[1718428114107,6.39,145.08,145.05,5.1014]
[1718428114310,6.39,145.06,145.05,2.5508]
[1718428114508,6.39,145.06,145.05,15.3049]
[1718428114933,6.39,145.06,145.05,25.5082]
[1718428117040,7.6507,145.09,145.07,2.5504]
[1718428117203,6.39,145.08,145.07,2.5504]
[1718428117400,6.39,145.08,145.07,25.5046]
[1718428118546,6.39,145.08,145.07,7.6513]
[1718428119014,6.39,145.08,145.07,15.3027]
[1718428119218,15.15610863,145.1,145.08,2.5502]
[1718428119414,33.2096,145.11,145.09,2.5501]
[1718428119739,33.2096,145.11,145.08,22.9527]
[1718428119740,6.39,145.1,145.08,25.5028]
[1718428119910,33.2096,145.11,145.09,2.5501]
[1718428120235,8.9399,145.1,145.08,25.5028]
[1718428120528,6.39,145.09,145.08,2.5501]
[1718428121119,6.39,145.09,145.08,7.6507]
[1718428121434,6.39,145.09,145.08,25.5028]
[1718428121612,6.39,145.09,145.08,7.6507]
[1718428121814,6.39,145.09,145.08,25.5028]
[1718428126952,6.39,145.09,145.08,7.6507]
[1718428127164,6.39,145.09,145.08,15.3016]
[1718428127443,25.4915,145.15,145.09,0.17]
[1718428127655,7.6486,145.13,145.11,2.5497]
[1718428127943,6.39,145.12,145.1,22.949]
[1718428128246,6.39,145.11,145.1,25.4989]
[1718428128430,6.39,145.11,145.1,17.8493]
[1718428128635,6.39,145.11,145.1,7.6496]
[1718428129034,6.39,145.11,145.1,25.4992]
[1718428131324,6.39,145.11,145.1,2.5499]
[1718428131527,6.39,145.11,145.05,6.39]
[1718428131528,2.55,145.1,145.08,7.6508]
[1718428131845,14.0405,145.09,145.07,2.5504]
[1718428132058,6.39,145.08,145.07,15.3027]
[1718428132340,6.39,145.08,145.07,25.5046]
[1718428132841,6.39,145.08,145.07,2.5504]
[1718428133241,6.39,145.08,145.07,15.3027]
[1718428133446,6.39,145.08,145.07,7.6513]
[1718428134332,6.39,145.08,145.07,15.3027]
[1718428135838,6.39,145.08,145.07,25.5046]
[1718428138732,6.39,145.08,145.04,16.6192]
[1718428138945,25.5001,145.1,145.08,2.5502]
[1718428139256,6.39,145.09,145.08,2.5502]
[1718428142155,6.39,145.09,145.08,7.6508]
[1718428144436,6.39,145.09,145.08,15.3017]
[1718428144641,2.5498,145.11,145.09,22.9509]
[1718428144833,6.39,145.1,145.09,25.501]
[1718428145737,6.39,145.1,145.09,7.6502]
[1718428146053,19.98357563,145.13,145.08,7.6508]
[1718428146261,6.39,145.09,145.08,25.503]
[1718428146453,6.39,145.09,145.08,25.673]
[1718428149155,2.5495,145.13,145.11,7.6492]
[1718428149356,6.39,145.12,145.11,25.4976]
[1718428150056,6.39,145.12,145.11,17.8483]
[1718428150249,6.39,145.12,145.11,7.6492]
[1718428150457,7.6503,145.09,145.08,0.17]
[1718428150648,6.39,145.09,145.08,12.7512]
[1718428150852,6.39,145.09,145.08,25.5026]
[1718428151040,6.39,145.09,145.08,25.503]
[1718428151744,6.39,145.1,145.09,25.5006]
[1718428156673,6.39,145.1,145.08,7.6506]
[1718428156846,31.8882,145.11,145.09,2.5501]
[1718428157047,6.39,145.1,145.08,25.5024]
[1718428157264,31.8882,145.11,145.09,2.5501]
[1718428157458,6.39,145.1,145.09,2.5501]
[1718428157648,6.39,145.1,145.09,7.6503]
[1718428157848,6.39,145.1,145.09,15.3007]
[1718428158049,6.39,145.1,145.09,7.6503]
[1718428158352,6.39,145.1,145.09,15.3007]
[1718428159058,6.39,145.1,145.09,25.5012]
[1718428162370,0.7407467,145.14,145.12,5.0991]
[1718428162583,0.7407467,145.14,145.12,25.4955]
[1718428162746,6.39,145.13,145.12,2.5494]
[1718428163059,6.39,145.13,145.11,22.9471]
[1718428163255,3.2899467,145.14,145.12,7.6487]
[1718428163479,6.39,145.13,145.12,15.2975]
[1718428163804,6.39,145.13,145.12,7.6487]
[1718428165593,8.9394,145.13,145.11,7.6489]
[1718428165900,6.39,145.12,145.11,7.6489]
[1718428166798,6.39,145.12,145.11,25.4973]
[1718428169398,8.9396,145.12,145.1,25.4988]
[1718428169705,6.39,145.11,145.1,7.6496]
[1718428170007,6.39,145.11,145.1,25.4992]
[1718428174505,6.39,145.11,145.09,7.6501]
[1718428174705,6.39,145.1,145.09,7.6501]
[1718428174905,6.39,145.1,145.09,2.55]
[1718428175717,6.39,145.1,145.09,7.6502]
[1718428176984,6.39,145.1,145.08,25.502]
[1718428177186,6.39,145.09,145.08,25.502]
[1718428177493,6.39,145.09,145.08,7.6505]
[1718428177686,6.39,145.09,145.08,25.5026]
[1718428178216,6.39,145.09,144.96,267.5]
[1718428178217,24.2414,145.09,145.06,15.3037]
[1718428178379,29.3412,145.09,145.06,7.6518]
[1718428178582,6.39,145.07,145.06,25.5064]
[1718428184516,6.39,145.07,145.01,6.39]
[1718428184517,6.39,145.07,145.0,23.0844]
[1718428184686,100.0,145.08,145.0,23.0844]
[1718428184687,6.39,145.03,145.01,20.0]
[1718428184885,6.39,145.04,145.03,25.5104]
[1718428185405,6.39,145.04,145.03,25.5113]
[1718428187809,6.39,145.05,145.04,25.51]
[1718428189631,7.16224475,145.11,145.04,0.34]
[1718428189801,6.39,145.07,145.06,7.6517]
[1718428190003,2.5501,145.09,145.07,2.5504]
[1718428190197,6.39,145.08,145.06,25.5063]
[1718428190398,6.39,145.07,145.06,25.5063]
[1718428190621,6.39,145.07,145.06,2.5505]
[1718428190798,6.39,145.07,145.06,7.6518]
[1718428191821,6.39,145.07,145.06,15.3038]
[1718428192322,6.39,145.07,145.06,25.5064]
[1718428196123,18.0781,145.12,145.06,0.34]
[1718428196337,6.39,145.08,145.07,25.5046]
[1718428199834,2.5498,145.11,145.08,22.9526]
[1718428200023,107.90583754,145.14,145.1,7.6496]
[1718428200234,6.39,145.11,145.1,2.5498]
[1718428200528,6.39,145.11,145.1,15.2995]
[1718428200725,6.39,145.11,145.1,25.4993]
[1718428201635,8.3887467,145.14,145.11,7.6491]
[1718428201843,8.3887467,145.14,145.13,25.4942]
[1718428201844,0.7407467,145.14,145.13,25.4942]
[1718428202049,7.1307467,145.14,145.13,7.6482]
[1718428202521,7.1307467,145.14,145.13,2.5494]
[1718428204725,7.1307467,145.14,145.12,22.9454]
[1718428205045,6.39,145.13,145.12,25.495]
[1718428205221,0.7407467,145.14,145.13,2.5494]
[1718428205417,0.7407467,145.14,145.13,25.4942]
[1718428206013,0.7407467,145.14,145.13,25.8342]
[1718428209748,0.7407467,145.14,145.13,26.0042]
[1718428209954,0.7407467,145.14,145.13,46.1742]
[1718428210750,0.7407467,145.14,145.13,68.9073]
[1718428210965,0.7407467,145.14,145.13,62.5173]
[1718428211137,0.7407467,145.14,145.13,68.9073]
[1718428211458,29.5132,145.24,145.2,12.7406]
[1718428211627,29.5132,145.24,145.2,7.6443]
[1718428211628,6.39,145.21,145.2,7.6443]
[1718428211829,15.3476,145.26,145.15,6.1279]
[1718428212189,2.5475,145.24,145.22,2.5478]
[1718428212331,6.39,145.23,145.21,25.4795]
[1718428212527,7.16771199,145.27,145.26,2.5471]
[1718428212735,0.8492275,145.28,145.26,15.2826]
[1718428212955,6.39,145.27,145.26,2.547]
[1718428213353,3.3960275,145.28,145.25,12.7363]
[1718428213557,0.8492275,145.28,145.27,17.8287]
[1718428213857,7.2392275,145.28,145.26,7.9811]
[1718428214032,7.2392275,145.28,145.26,2.547]
[1718428214232,0.8492275,145.28,145.27,5.0939]
[1718428214440,7.2392275,145.28,145.26,2.547]
[1718428214635,6.39,145.27,145.26,7.6412]
[1718428214837,8.937,145.27,145.24,25.4741]
[1718428215054,8.937,145.27,145.2,6.39]
[1718428215055,15.2852,145.24,145.2,25.4811]
[1718428215273,100.8492275,145.28,145.18,16.3431]
[1718428215561,10.1932,145.2,145.15,7.6469]
[1718428215856,6.39,145.16,145.14,10.1969]
[1718428216066,6.39,145.16,145.14,7.6474]
[1718428216250,11.4882,145.15,145.11,5.0994]
[1718428216444,6.39,145.13,145.12,17.8471]
[1718428216643,6.39,145.13,145.12,7.6487]
[1718428216961,6.39,145.14,145.13,15.2962]
[1718428217192,6.39,145.14,145.08,10.2008]
[1718428217350,100.0,145.17,145.11,10.1991]
[1718428217351,6.39,145.12,145.11,10.1991]
[1718428217560,107.6463,145.17,145.14,2.5492]
[1718428217749,2.5489,145.16,145.13,5.0987]
[1718428217949,6.39,145.14,145.13,15.2963]
[1718428218142,6.39,145.14,145.13,25.494]
[1718428219161,6.39,145.17,145.16,7.6464]
[1718428219359,6.39,145.17,145.16,15.2931]
[1718428219548,6.39,145.17,145.16,25.4887]
[1718428219953,5.0962,145.21,145.17,5.0972]
[1718428220265,6.39,145.18,145.17,2.5486]
[1718428220448,6.39,145.18,145.16,22.9392]
[1718428220650,6.39,145.18,145.17,2.5487]
[1718428220846,7.6448,145.2,145.17,2.5487]
[1718428222564,2.5483,145.2,145.17,2.5487]
[1718428222867,2.5483,145.2,145.17,7.6461]
[1718428223063,2.5483,145.2,145.17,2.5487]
[1718428223267,7.6447,145.2,145.17,2.5487]
[1718428223860,2.5483,145.19,145.16,15.2928]
[1718428224058,25.4823,145.2,145.17,2.5487]
[1718428224265,7.6448,145.2,145.17,2.5487]
[1718428224877,2.5483,145.2,145.17,7.6461]
[1718428225067,2.5483,145.2,145.17,2.5487]
[1718428225268,7.6447,145.2,145.17,2.5487]
[1718428225475,2.5483,145.2,145.17,15.2922]
[1718428225776,25.4809,145.21,145.18,2.5485]
[1718428225983,22.9328,145.21,145.17,12.7435]
[1718428226188,2.5482,145.2,145.17,15.292]
[1718428226388,25.4809,145.21,145.18,2.5485]
[1718428226774,100.0,145.23,145.15,0.17]
[1718428226775,17.8343,145.23,145.16,0.17]
[1718428226970,2.5477,145.23,145.2,7.6443]
[1718428227167,7.6431,145.23,145.2,2.5481]
[1718428227366,2.5477,145.23,145.2,7.6444]
[1718428227661,2.5478,145.22,145.19,25.4826]
[1718428227854,7.6432,145.23,145.2,2.5482]
[1718428228166,2.5478,145.22,145.2,2.5482]
[1718428228379,25.4771,145.23,145.2,2.5481]
[1718428228581,7.6433,145.23,145.2,2.5481]
[1718428228782,7.6433,145.23,145.2,7.6445]
[1718428229285,15.2871,145.22,145.19,2.5482]
[1718428229585,2.5482,145.2,145.17,7.646]
[1718428229965,25.4823,145.2,145.17,2.5486]
[1718428230190,7.6454,145.19,145.16,2.5487]
[1718428230485,7.6448,145.2,145.17,7.6461]
[1718428230686,2.5483,145.2,145.17,7.6461]
[1718428230890,7.6447,145.2,145.17,7.6461]
[1718428231183,2.5483,145.2,145.17,12.7435]
[1718428231392,25.481,145.21,145.18,2.5485]
[1718428231893,7.6442,145.21,145.18,2.5485]
[1718428232203,15.2883,145.21,145.18,2.5485]
[1718428232589,7.6446,145.2,145.17,2.5486]
[1718428233293,2.5482,145.2,145.17,2.5486]
[1718428233594,2.5482,145.2,145.17,15.2921]
[1718428234488,2.5482,145.2,145.17,7.6459]
[1718428234697,2.5482,145.2,145.18,2.5485]
[1718428234885,2.5482,145.2,145.17,15.2919]
[1718428235384,22.9311,145.22,145.19,2.5483]
[1718428235591,2.548,145.21,145.19,2.5483]
[1718428235977,22.9326,145.21,145.18,2.5485]
[1718428236290,25.4807,145.21,145.18,2.5485]
[1718428236767,2.5482,145.2,145.18,2.5485]
[1718428236968,22.9313,145.22,145.19,2.5483]
[1718428237191,7.6441,145.21,145.18,7.6455]
[1718428237970,2.5482,145.2,145.18,2.5485]
[1718428238365,125.4803,145.21,145.18,2.5485]
[1718428238968,102.5481,145.21,145.18,15.2912]
[1718428239281,107.6441,145.21,145.18,7.6456]
[1718428239477,107.6441,145.21,145.18,2.5485]
[1718428239995,2.5482,145.2,145.17,25.4859]
[1718428240286,2.5482,145.2,145.14,0.17]
[1718428240287,100.0,145.21,145.13,15.5231]
[1718428240586,19.14,145.22,145.14,2.5491]
[1718428240587,15.2925,145.17,145.14,2.5491]
[1718428240892,6.38,145.15,145.14,22.9429]
[1718428241071,6.38,145.15,145.14,25.492]
[1718428243085,107.6452,145.19,145.16,2.5488]
[1718428243291,6.38,145.17,145.16,2.5488]
[1718428244577,6.38,145.17,145.14,22.9425]
[1718428244781,6.38,145.15,145.14,25.4917]
[1718428249201,6.38,145.15,145.14,2.5492]
[1718428249405,14.0272,145.15,145.12,2.5495]
[1718428249735,6.38,145.13,145.09,21.1593]
[1718428249996,2.5493,145.14,145.11,15.2984]
[1718428250199,6.38,145.12,145.11,15.2984]
[1718428250375,100.0,145.16,145.14,2.5492]
[1718428250576,6.38,145.15,145.14,2.5492]
[1718428251227,6.38,145.15,145.14,7.6477]
[1718428251403,6.38,145.15,145.14,2.5492]
[1718428252615,25.4874,145.17,145.14,2.5492]
[1718428252793,6.38,145.15,145.14,2.5492]
[1718428253506,6.38,145.15,145.13,25.4931]
[1718428253914,6.38,145.15,145.13,7.6478]
[1718428254114,6.38,145.14,145.13,7.6478]
[1718428254514,6.38,145.14,145.13,2.5492]
[1718428255221,6.38,145.14,145.13,7.648]
[1718428256029,6.38,145.14,145.13,2.5492]
[1718428257615,6.38,145.14,145.13,7.648]
[1718428258425,8.9292,145.14,145.12,2.5495]
[1718428258725,6.38,145.13,145.11,7.6489]
[1718428258925,6.38,145.12,145.1,7.6496]
[1718428259126,6.38,145.11,145.1,2.5498]
[1718428259329,6.38,145.11,145.1,15.2995]
[1718428259538,6.38,145.11,145.1,7.6497]
[1718428259703,6.38,145.11,145.1,15.2995]
[1718428260206,6.38,145.11,145.1,7.6497]
[1718428261325,6.38,145.11,145.1,2.5498]
[1718428261537,6.38,145.11,145.1,7.6497]
[1718428262426,6.38,145.11,145.08,7.6508]
[1718428262728,6.38,145.11,145.09,7.6502]
[1718428262927,6.38,145.1,145.09,7.6502]
[1718428263317,6.38,145.1,145.09,25.5011]
[1718428264331,6.38,145.1,145.09,7.6502]
[1718428264511,6.38,145.1,145.09,15.3006]
[1718428265434,6.38,145.1,145.09,25.5011]
[1718428266314,25.4952,145.13,145.1,2.5499]
[1718428266625,6.38,145.11,145.1,15.2996]
[1718428266929,6.38,145.11,145.1,7.6498]
[1718428267219,6.38,145.11,145.1,2.5499]
[1718428268342,7.6484,145.13,145.1,2.5499]
[1718428268642,6.38,145.11,145.1,2.5499]
[1718428268946,12.76,145.11,145.1,2.5499]
[1718428269150,13.09333333,145.11,145.1,2.5499]
[1718428269613,13.09333333,145.11,145.1,7.6498]
[1718428270118,6.71333333,145.11,145.1,15.2996]
[1718428270532,6.71333333,145.11,145.1,2.5499]
[1718428270833,6.71333333,145.11,145.09,22.9501]
[1718428271040,6.71333333,145.11,145.1,2.5499]
[1718428271246,13.09333333,145.11,145.1,2.5499]
[1718428271416,13.09333333,145.11,145.09,25.5]
[1718428271621,13.09333333,145.11,145.09,25.5001]
[1718428272139,13.09333333,145.11,145.1,2.5499]
[1718428273328,13.09333333,145.11,145.09,25.5]
[1718428274545,7.6507,145.09,145.05,12.7539]
[1718428274834,7.6505,145.09,145.06,2.5505]
[1718428275038,6.38,145.07,145.06,7.6518]
[1718428275412,6.71333333,145.07,145.06,7.6518]
[1718428275614,6.71333333,145.07,145.06,15.3038]
[1718428276135,6.71333333,145.07,145.06,2.5505]
[1718428276643,6.71333333,145.07,145.06,7.6518]
[1718428277023,6.71333333,145.07,145.05,25.5074]
[1718428277239,6.38,145.06,145.05,25.5077]
[1718428279343,6.38,145.06,145.05,2.5508]
[1718428279527,6.38,145.06,145.04,2.551]
[1718428279721,6.71333333,145.06,145.04,2.551]
[1718428280039,6.38,145.05,145.04,2.551]
[1718428280214,6.38,145.05,145.04,15.306]
[1718428280416,107.6512,145.08,145.05,2.5508]
[1718428280626,6.38,145.06,145.05,2.5508]
[1718428282218,7.6507,145.09,145.06,2.5506]
[1718428282423,6.38,145.07,145.05,22.9573]
[1718428282627,15.3011,145.09,145.05,25.508]
[1718428282845,6.38,145.06,145.05,25.508]
[1718428283146,6.38,145.06,145.05,7.6523]
[1718428283341,6.38,145.06,145.05,2.5507]
[1718428283541,6.71333333,145.06,145.05,15.3048]
[1718428283721,0.33333333,145.06,145.05,15.3048]